Cogmind - Beta 16.1 @@@ ROGUE MODE // 2026.02.20 @ 21:26:10 Player: APerTAS Result: Destroyed by Q9-Q5K(R) with Subdweller Laser Performance ------------- Evolutions (0) 0 Regions Visited (3) 600 Robots Destroyed (16) 80 Value Destroyed (257) 257 Prototype IDs (13) 260 Alien Tech Used (0) 0 Bonus (0) 0 TOTAL SCORE: 1197 Bonus ------- None Cogmind --------- Core Integrity 0/250 Matter 268/300 Energy 164/200 System Corruption 0% Temperature Cool (6) Movement Walking (130) Location -10/Subcaves Parts ------- > --- POWER (1) -------- Subdweller Power Source > --- PROPULSION (2) --- Cargo Legs > --- UTILITY (2+2) ---- Heat Sink (+) High-capacity Storage Unit Targeting Computer (+) Weapon Shielding > --- WEAPON (2) ------- EM Pulse Gun Light Assault Rifle > --- INVENTORY (20) --- Light Ion Engine Light Ion Engine Subdweller Power Source Light Treads Compact Wheel Compact Wheel Subdweller Monowheel Subdweller Optics Medium Laser Light Assault Rifle Grenade Launcher Mining Laser Flamer Signal Generator Peak State ------------ > --- POWER ------------ Subdweller Power Source > --- PROPULSION ------- Cargo Legs > --- UTILITY ---------- Heat Sink High-capacity Storage Unit Subdweller Optics Targeting Computer > --- WEAPON ----------- EM Pulse Gun Light Assault Rifle > --- INVENTORY -------- Light Ion Engine Light Ion Engine Subdweller Power Source Light Treads Compact Wheel Compact Wheel Subdweller Monowheel Weapon Shielding Medium Laser Light Assault Rifle Grenade Launcher Mining Laser Flamer Signal Generator [Rating: 27] Favorites ----------- Power Ion Engine Engine Ion Engine Propulsion Light Treads Treads Light Treads Leg Cargo Legs Wheel Compact Wheel Utility High-capacity Storage Unit Device Seismic Detector Storage High-capacity Storage Unit Processor Targeting Computer Protection Weapon Shielding Weapon Medium Laser Energy Gun Medium Laser Ballistic Gun Light Assault Rifle Special Weapon Mining Laser Build | -11 -10 -10 -10 ------- Run | Yrd Mat Min Sub Slots Evolved . | . . . . Power . | . . . . Propulsion . | . . . . Utility . | . . . . Weapon . | . . . . Parts Attached 23 | 7 3 1 12 Power 5 | 1 1 . 3 Engine 5 | 1 1 . 3 Core . | . . . . Reactor . | . . . . Propulsion 4 | 2 . . 2 Treads 2 | 2 . . . Leg 1 | . . . 1 Wheel 1 | . . . 1 Hover . | . . . . Flight . | . . . . Utility 8 | 2 2 . 4 Device 4 | 1 1 . 2 Storage 2 | 1 1 . . Processor 1 | . . . 1 Hackware . | . . . . Protection 1 | . . . 1 Artifact . | . . . . Weapon 6 | 2 . 1 3 Energy Gun 3 | 2 . . 1 Energy Cannon . | . . . . Ballistic Gun 2 | . . 1 1 Ballistic Cannon . | . . . . Launcher . | . . . . Special Weapon 1 | . . . 1 Impact Weapon . | . . . . Slashing Weapon . | . . . . Piercing Weapon . | . . . . Special Melee Weapon . | . . . . Unidentified Prototypes . | . . . . Parts Lost 5 | . . 3 2 Power 2 | . . 1 1 Propulsion 1 | . . 1 . Utility 2 | . . 1 1 Weapon . | . . . . Highest Loss Streak 3 | . . 3 1 To Critical Strikes . | . . . . Average Backups 10 | 3 7 11 11 Power 2 | . 1 2 2 Propulsion 2 | 1 2 2 2 Utility 2 | . 2 4 1 Weapon 3 | 1 2 3 4 Tool/Special . | . . . . Unused Backups 6 | . . . 6 Power 1 | . . . 1 Propulsion 2 | . . . 2 Utility . | . . . . Weapon 2 | . . . 2 Tool/Special 1 | . . . 1 Average Slot Usage (%) 96 | . 100 99 92 Engine 12 | . 14 13 12 Treads 17 | . 28 28 5 Leg 3 | . . . 6 Wheel 2 | . . . 5 Device 16 | . 14 13 18 Storage 13 | . 14 14 12 Processor 3 | . . . 6 Energy Gun 14 | . 28 15 12 Ballistic Gun 8 | . . 12 5 Special Weapon 3 | . . . 6 Peak Build Rating 27 | 7 8 8 27 Average Rating 12 | 5 7 7 18 On Entrance 5 | . 7 8 5 Avg Prop Armor Cover (%) 13 | . . . 13 Naked Turns . | . . . . Heaviest Build 51 | 12 49 49 51 Greatest Support 55 | 40 40 40 55 Greatest Overweight (x) 3 | . 1 2 3 Average Overweight (x) . | . . 1 1 Largest Inventory Capacity 20 | 8 20 20 20 Average Capacity 18 | 7 16 20 20 Most Carried 16 | 5 10 13 16 Average Carried 10 | 3 7 11 12 Final Capacity 20 | 8 20 20 20 Final Carried 14 | 5 10 13 14 Class Distribution -------------------- 99% | Mutant Dominant Class ---------------- Mutant | -10/Materials Mutant | -10/Mines Mutant | -10/Subcaves Resources | -11 -10 -10 -10 ----------- Run | Yrd Mat Min Sub Matter Collected 447 | 270 30 18 129 Remotely . | . . . . Salvage Created 471 | 154 55 86 176 Parts 41 | 13 2 14 12 Haulers Intercepted 1 | . 1 . . Recyclers Shooed . | . . . . Parts Field Recycled . | . . . . Retrieved Matter . | . . . . Parts Self-Destructed 9 | . . . 9 Prevented . | . . . . Parts Restored . | . . . . Kills | -11 -10 -10 -10 ------- Run | Yrd Mat Min Sub Combat Hostiles Destroyed 10 | . . 6 4 Guns 10 | . . 6 4 Classes Destroyed 6 | 2 1 1 2 Tunneler 4 | 4 . . . Hauler 1 | . 1 . . Recycler 1 | 1 . . . Swarmer 6 | . . 6 . Grunt 2 | . . . 2 Subdweller 2 | . . . 2 Best Kill Streak 3 | 3 1 3 2 Combat Bots Only 3 | . . 3 2 Max Kills in Single Turn 1 | 1 1 1 1 Gunslinging . | . . . . Exploded . | . . . . Melee . | . . . . Uniques/NPCs Destroyed . | . . . . Combat | -11 -10 -10 -10 -------- Run | Yrd Mat Min Sub Hostile Shots Fired 83 | . 3 40 40 Missed 22 | . 2 10 10 Hits 61 | . 1 30 30 Projectile 61 | . 1 30 30 AOE 12 | . . 12 . Damage Taken 1141 | . 12 555 574 Core 260 | . . 148 112 Absorbed by Shields . | . . . . Core Remaining (%) 100 | 100 . . . Volleys Fired 77 | 12 7 12 46 Largest 2 | 2 2 2 2 Hottest 140 | 90 90 90 140 Shots Fired 130 | 24 14 24 68 Gun 105 | 24 14 24 43 Cannon . | . . . . Launcher . | . . . . Special 25 | . . . 25 Kinetic 29 | . . 8 21 Thermal 86 | 24 14 16 32 Explosive . | . . . . Electromagnetic 15 | . . . 15 Robot Hit Streak 23 | 6 6 5 23 Robot Miss Streak 2 | 1 2 2 1 Penetration Max . | . . . . Secondary Targets 1 | . . 1 . Max Gunslinging Chain 1 | . . 1 . Shots Hit Robots 80 | 18 10 16 36 Core Hits 28 | 6 2 8 12 Critical Kills . | . . . . Critical Parts Destroyed . | . . . . Critical Strikes 2 | 1 . . 1 Burn 2 | 1 . . 1 Melee Attacks . | . . . . Impact . | . . . . Slashing . | . . . . Piercing . | . . . . Sneak Attacks . | . . . . Combat Hostiles . | . . . . Follow-up Attacks . | . . . . Damage Inflicted 837 | 210 116 163 348 Guns 837 | 210 116 163 348 Cannons . | . . . . Explosions . | . . . . Melee . | . . . . Ramming . | . . . . Kinetic 202 | . . 45 157 Thermal 507 | 210 116 118 63 Explosive . | . . . . Electromagnetic 128 | . . . 128 Impact . | . . . . Slashing . | . . . . Piercing . | . . . . Highest Corruption . | . . . . Average Corruption . | . . . . Corruption Purged . | . . . . Corruption Blocked . | . . . . Overload Shots . | . . . . Overflow Damage . | . . . . Projectiles . | . . . . Explosions . | . . . . Melee . | . . . . Knockbacks . | . . . . Impact . | . . . . Kinetic . | . . . . Secondary . | . . . . Self-Inflicted Damage . | . . . . Shots . | . . . . Rammed . | . . . . Targets Rammed . | . . . . Kicked . | . . . . Crushed . | . . . . Highest Temperature 120 | 120 120 120 10 Average Temperature 49 | 39 55 60 4 Received Heat Transfer 102 | . 6 . 96 Siege Activations . | . . . . Martial Activations . | . . . . Shielding Activations . | . . . . Robots Disrupted . | . . . . Combat Hostiles . | . . . . Robots Corrupted . | . . . . Combat Hostiles . | . . . . Parts Fried . | . . . . Impact Corruptions . | . . . . Robots Melted . | . . . . Combat Hostiles . | . . . . Parts Melted 2 | 1 . 1 . Heat Transferred 1523 | 620 310 334 259 Parts Sabotaged . | . . . . Parts Stolen . | . . . . Parts Stripped . | . . . . Power Chain Reactions . | . . . . Alert | -11 -10 -10 -10 ------- Run | Yrd Mat Min Sub Maximum Alert Level . | . . . . Low Security (%) 100 | 100 100 100 . Level 1 . | . . . . Level 2 . | . . . . Level 3 . | . . . . Level 4 . | . . . . Level 5 . | . . . . High Security . | . . . . Max Security . | . . . . Peak Influence 70 | 10 15 70 . Initial . | . . . . Average 8 | . 2 11 . Influence Increases 237 | 25 22 140 50 Destroy 0b10 Robot/C 160 | . . 120 40 Destroy 0b10 Robot/NC 30 | 25 5 . . Destroy Leader 32 | . 2 20 10 Partial Spotted 15 | . 15 . . Influence Decreases 237 | 25 22 140 50 Time Decay 237 | 25 22 140 50 Squads Dispatched 1 | . . 1 . Investigation . | . . . . Extermination . | . . . . Reinforcement . | . . . . Assault 1 | . . 1 . Garrison . | . . . . Intercept . | . . . . Searches Triggered . | . . . . Construction Impeded . | . . . . Haulers Reinforced . | . . . . Active Scanning Responses . | . . . . Cargo Convoy Interrupts . | . . . . Stealth | -11 -10 -10 -10 --------- Run | Yrd Mat Min Sub Distress Signals 1 | . 1 . . Communications Jammed . | . . . . Distress Signals . | . . . . Times Spotted 16 | . 2 8 6 Peak Tracking Total 3 | . 2 3 2 Tactical Retreats . | . . . . Traps | -11 -10 -10 -10 ------- Run | Yrd Mat Min Sub Traps Triggered . | . . . . Indirectly . | . . . . Trap Hack Attempts . | . . . . Triggered . | . . . . Disarmed . | . . . . Reprogrammed . | . . . . Reused . | . . . . Traps Extracted . | . . . . Installed . | . . . . Triggered . | . . . . Machines | -11 -10 -10 -10 ---------- Run | Yrd Mat Min Sub Machines Disabled 1 | . . . 1 Max in Single Turn 1 | . . . 1 Machines Repaired . | . . . . Machines Dismantled . | . . . . Machines Sabotaged . | . . . . Overloaded Fab Kills . | . . . . Hacking | -11 -10 -10 -10 --------- Run | Yrd Mat Min Sub Machines Accessed 1 | . . . 1 Terminals . | . . . . Fabricators . | . . . . Repair Stations . | . . . . Recycling Units . | . . . . Scanalyzers . | . . . . Garrison Access . | . . . . Total Hacks 9 | . . . 9 Successful 9 | . . . 9 Failed . | . . . . Catastrophic . | . . . . Database Lockouts . | . . . . Manual . | . . . . Terminals . | . . . . Fabricators . | . . . . Repair Stations . | . . . . Recycling Units . | . . . . Scanalyzers . | . . . . Garrison Access . | . . . . Terminal Hacks 9 | . . . 9 Record 8 | . . . 8 Proto ID Catalog 1 | . . . 1 Fabricator Hacks . | . . . . Repair Station Hacks . | . . . . Recycling Unit Hacks . | . . . . Scanalyzer . | . . . . Garrison Access Hacks . | . . . . Unauthorized Hacks . | . . . . Terminals . | . . . . Fabricators . | . . . . Repair Stations . | . . . . Recycling Units . | . . . . Scanalyzers . | . . . . Garrison Access . | . . . . Data Cores Recovered . | . . . . Used . | . . . . Hacking Detections . | . . . . Full Trace Events . | . . . . Feedback Events . | . . . . Feedback Blocked . | . . . . Robot Schematics Acquired . | . . . . Robots Built . | . . . . Authchips . | . . . . Time . | . . . . Total Robot Build Rating . | . . . . Part Schematics Acquired . | . . . . Parts Built . | . . . . Authchips . | . . . . Time . | . . . . Total Part Build Rating . | . . . . Part Studies Acquired . | . . . . Parts Repaired . | . . . . Time . | . . . . Parts Recycled . | . . . . Recycled Matter . | . . . . Retrieved Matter . | . . . . Retrieved Components . | . . . . Parts Scanalyzed . | . . . . Part Schematics Acquired . | . . . . Parts Damaged . | . . . . Bothacking | -11 -10 -10 -10 ------------ Run | Yrd Mat Min Sub Used RIF Installer . | . . . . Robots Hacked . | . . . . Non-combat . | . . . . Combat . | . . . . Robot Hacks Applied . | . . . . Relay Couplers Released . | . . . . Fabnet Peak Effective % . | . . . . Robots Rewired . | . . . . Allies Hacked . | . . . . Hacks Repelled . | . . . . Allies | -11 -10 -10 -10 -------- Run | Yrd Mat Min Sub Total Allies 1 | . . 1 . Largest Group 1 | . . 1 . Highest-Rated Group 31 | . . 31 . Highest-Rated Ally 31 | . . 31 . Total Orders . | . . . . Ally Attacks 4 | . . 4 . Total Damage 41 | . . 41 . Kills . | . . . . Allies Corrupted . | . . . . Allies Melted . | . . . . Intel | -11 -10 -10 -10 ------- Run | Yrd Mat Min Sub Active Infowar (turns) 1813 | 8 208 943 654 Optics 109 | . . . 109 Seismic 1704 | 8 208 943 545 Robot Analysis Total . | . . . . Derelict Logs Recovered 2 | . . 1 1 Drone Launches . | . . . . Drone Recoveries . | . . . . Exploration | -11 -10 -10 -10 ------------- Run | Yrd Mat Min Sub Turns Passed 2501 | 225 208 963 1105 Spaces Moved 1234 | 108 85 378 663 Core 1 | 1 . . . Treads 570 | 107 85 378 . Legs 389 | . . . 389 Wheels 274 | . . . 274 Hover . | . . . . Flight . | . . . . Fastest Speed 50 | 50 160 240 130 Average Speed 174 | 158 202 240 135 Slowest Speed 320 | 160 240 320 145 Overloaded Moves . | . . . . Propulsion Burnouts . | . . . . Robots Hopped . | . . . . Potential Cave-ins . | . . . . Cave-ins Triggered . | . . . . Exploration Rate (%) 28 | 6 19 61 28 Regions Visited 3 Branch Regions 2 Pre-discovered Areas 2 | . . 1 1 Known Exits Taken . | . . . . Unknown Exits Taken 3 | 1 1 1 . Scrap Searched 1 | . . 1 . Spaces Dug . | . . . . Terrain Destroyed . | . . . . Melee . | . . . . Projectile . | . . . . AOE . | . . . . Terrain Rammed . | . . . . Walls Destroyed . | . . . . Machines Disabled . | . . . . Actions | -11 -10 -10 -10 --------- Run | Yrd Mat Min Sub Total 1406 | 134 107 411 754 Wait 51 | 3 9 18 21 Move 1231 | 107 84 377 663 Hop . | . . . . Pick Up 17 | 5 3 3 6 Fast Attach 8 | 7 . . 1 Attach 7 | . . . 7 Detach 2 | . . . 2 Swap 11 | . 3 1 7 Drop 2 | . 1 . 1 Fire 77 | 12 7 12 46 Melee . | . . . . Ram . | . . . . Kick . | . . . . Crush . | . . . . Escape Stasis . | . . . . Rewire . | . . . . Trap . | . . . . Miscellaneous . | . . . . Route ------- -11/Scrapyard -10/Materials -10/Mines (discovered 2 exits: [*Mat] / *Sub) -10/Subcaves (discovered 1 exit: [*Scr]) History --------- Turn | Location | Event 10 | -11/Scrapyard | Discovered new exit (range 14) 226 | -11/Scrapyard | Entered Materials 315 | -10/Materials | Build established: Mutant 412 | -10/Materials | Discovered new exit (range 7) 434 | -10/Materials | Entered Mines 534 | -10/Mines | Learned location of Zion (-6) 896 | -10/Mines | Discovered new exit (range 3) 1174 | -10/Mines | YI-UF0 nonchalantly dropped a Grenade Launcher on the ground 1283 | -10/Mines | Met a Derelict testing a Signal Generator 1302 | -10/Mines | Found Signal Generator 1381 | -10/Mines | Discovered new exit (range 9) 1395 | -10/Mines | Core integrity fell below 50% 1397 | -10/Mines | Entered Subcaves 1398 | -10/Subcaves | Approached by a straggling Scientist 1425 | -10/Subcaves | Lost 3 parts (1p1n1u) 1491 | -10/Subcaves | Scientist uncovered a shortcut to Scraptown 1823 | -10/Subcaves | Visited 4L-MR0's lab 1833 | -10/Subcaves | Found Prototype Special Melee Weapon 1851 | -10/Subcaves | Found Cargo Legs 1856 | -10/Subcaves | Attached Cargo Legs, gained temporary slots: Utility x2 2494 | -10/Subcaves | Core integrity fell below 20% 2502 | -10/Subcaves | Destroyed by Q9-Q5K(R) with Subdweller Laser Last Messages --------------- 01880_ Acquired 8 matter. 01885_ Acquired 1 matter. 01939_ A0-5JA(R) destroyed. 01943_ Seismic Detector destroyed. 01945_ Subatomizers dissect the Sub. Optics. 01948_ QU-N4Y(R) destroyed. 01953_ Acquired Sub. Power Source. 01955_ Acquired Corrupted Sub. Power Source. 01958_ Subatomizers dissect the Sub. Optics. 01959_ Acquired Sub. Optics. 01961_ Acquired 38 matter. 01963_ Acquired Sub. Monowheel. 01965_ Acquired Flamer. 01968_ Subatomizers dissect the Disposable Heat Sink. 02010_ EU-MT2(u) tweaks Twisted Machinery. 02028_ EU-MT2(u) builds Twisted Machinery. 02068_ Sub. Optics shoots sparks and powers down. 02089_ Acquired 10 matter. 02218_ EU-MT2(u) builds Twisted Machinery. 02487_ Ion Engine destroyed. Map ----- +----------------------------------------------------+ | ###??????????????????????????????????????????????? | | ##???????????????????????????????????????????????? | | #???????????????????????????????????????????????? | | ##??????????????????????????????????????????????? | | #??????????????????????????????????????????????? | | #??????????????????????????????????????????????? | | #??????????????????????????????????????????????? | | #??????????????????????????????????????????????? | | #??????????????????????????????????????????????? | | ##??????????????????????????????????????????????? | | ##???????????????????????????????????????????????? | | #?????????????????????????#??#???????????????????? | | #??????????????????????? ## #?????????????????? | | #?????????????????????? #?????????????????? | | #?????????????????????? ??????????????????? | | #??????????????????????? ##????????????????? | | #??????????????????????? #????????????????? | | #??????????????????#####? ?????????????????? | | ???????????????????# ??????????????????? | | ???????????????????# ? ??????????????????? | | ???????????????????# % ?? ???????????????????? | | ????????#######????# ???# #???????????????????? | | ???????## #????# ????# #???????????????????? | | ???????# #???## ###??# ##??????????????????? | | #??????## #???# #### ##?????????????????? | | #??????## ###### @R ##????????????????? | | #?????## ### # R ##???????????????? | | #????## ### ##??????????????? | | ?????# #?## #??????????????? | | ###### #### ### ###??????????????? | | ## ##### ####????????????????? | | #???## ##???????????????????? | | ## #????## ##????????????????????? | | ?## ### # ###?????### ##?????????????????????? | | ??####?########?????????###??????????????????????? | | ?????????????????????????????????????????????????? | | ?????????????????????????????????????????????????? | | ?????????????????????????????????????????????????? | | ?????????????????????????????????????????????????? | | ?????????????????????????????????????????????????? | | ?????????????????????????????????????????????????? | | ?????????????????????????????????????????????????? | | ?????????????????????????????????????????????????? | | ?????????????????????????????????????????????????? | | ?????????????????????????????????????????????????? | | ?????????????????????????????????????????????????? | | ?????????????????????????????????????????????????? | | ?????????????????????????????????????????????????? | | ?????????????????????????????????????????????????? | | | +----------------------------------------------------+ Best States ------------- Heat Dissipation 35 Energy Generation 15 Energy Capacity 250 Matter Stores 300 Matter Capacity 300 Sight Range 21 Terrain Scan Density 10 Evasion (%) 55 Targeting Accuracy 5 Recoil Reduction 2 Item Schematics ----------------- None Robot Schematics ------------------ None Fabricated ------------ Nothing Repaired ---------- Nothing Studied --------- None Alien Tech Used ----------------- None Achievements -------------- None Challenges ------------ None Game ------ Seed LargeClaymoresMaterializer Manual? 0 Play Time 00:18:03 Cumulative 55.3 hours Start 2026.02.20 @ 21:10:01 End 2026.02.20 @ 21:26:10 Sessions 1 Manual Loads 0 Difficulty Rogue Special Mode None Game No. 164 Rogue 164 Adventurer 0 Explorer 0 Win Type - Total 0 Types 0/0/0/0/0/0/0/0/0/0 Lore% 60 Gallery% 35 Achievement% 33 Wizard Run 0 Options --------- Layout 0 ASCII 0 Keyboard 0 Movement Arrows Keybinds 0 Fullscreen 1 Font 24/Terminus Map View 64x52 Zoom Use 0% Tactical HUD 1 Map Filters NONE Filters NONE Steam 1 RUN: 8931261b-c9c4-4538-aead-345477aecfa6